Department,Expense Area,Date,Supplier,Transaction Number,Amount,Expense Type
Home Office,DDaT - Digital Data & Technology,04/10/2021,AMAZON,99-DDaT - Digital Data & Technology-98997,989.97,3 X 1200D Canon Cameras For Break Fix - Now Eol And Not Available From Supplier
Home Office,DDaT - Digital Data & Technology,05/10/2021,AMAZON,98-DDaT - Digital Data & Technology-65998,659.98,1 X 1200D And 1 X 550D Canon Cameras For Break Fix - Now Eol And Not Available From Supplier
Home Office,DDaT - Digital Data & Technology,06/10/2021,AMAZON,97-DDaT - Digital Data & Technology-76485,764.85,1 X 1200D And 1 X 550D Canon Cameras For Break Fix - Now Eol And Not Available From Supplier
Home Office,DDaT - Digital Data & Technology,13/10/2021,PAYPAL BGRANDCPSP,100-DDaT - Digital Data & Technology-61516999999999996,615.17,Bespoke Training
Home Office,DDaT - Digital Data & Technology,18/10/2021,AMAZON,95-DDaT - Digital Data & Technology-88986,889.86,3 X 550D Canon Cameras For Break Fix - Now Eol And Not Available From Supplier
Home Office,DDaT - Digital Data & Technology,20/10/2021,AMAZON,96-DDaT - Digital Data & Technology-52737,527.37,Description: Atlona At-Uhd-Ex-70C-Rx 4K/Uhd Hdmi Over Hdbaset Receiver Ith Control And Poe. Hook & Loop White Self Adhesive Tape. Cable Matters Hdmi To Displayport Adapter. Benfei Active Displayport To Hdmi Adapter. Reason: Tried & Tested Devices/Products
Home Office,DDaT - Digital Data & Technology,25/10/2021,Directnine-EU,93-DDaT - Digital Data & Technology-56495000000000005,564.95,Wacom Signature Pad - For The Ssc - Purchased Here Due To Eof Peripheral
Home Office,DDaT - Digital Data & Technology,26/10/2021,AMAZON,94-DDaT - Digital Data & Technology-90986,909.86,3 X 550D Canon Cameras For Small Boats Requirement- Now Eol And Not Available From Supplier
Home Office,HMPO - Her Majesty's Passport Office,13/10/2021,ADOBE CREATIVE CLOUD,92-HMPO - Her Majesty's Passport Office-8496,849.60,Media Publishing Software For Stand Alone Media Laptop Used By Engagement Team. For Content Shared Across Home Office
Home Office,HSG - Homeland Security Group,14/10/2021,1STOPTIONSAFETY,101-HSG - Homeland Security Group-12204000000000001,1220.40,"Spend Was For Safe Training To Allow Members Of Our Team Who Need To Travel To Be Able To Do So Safely. Particularly, The Individual In Question May Have To Travel To Turkey, And Maybe Syria."
Home Office,"STARS - Science, Technology, Analysis, Research and Strategy",18/10/2021,TABLEAU,"0-STARS - Science, Technology, Analysis, Research and Strategy -63441",634.41,Tableau Software Licence Renewal For Social Media Team Within Comms Directorate. Tableau Is A Data Visualisation Platform.
Home Office,UKBE - UK Borders & Enforcement,01/10/2021,CRITICAL HEALTHCARE,88-UKBE - UK Borders & Enforcement-22445100000000002,2244.51,2000 Blankets For Welfare Issues At Tug Haven As Part Of Cort/Ctc Dealing With Channel Crossings
Home Office,UKBE - UK Borders & Enforcement,01/10/2021,HOTEL ISOLA SACRA ROME,91-UKBE - UK Borders & Enforcement-59271,592.71,The Transaction Was To Purchase A Hotel Room For A Migrant Who We Were Returning To Italy. The Covid Entry Requirements To Italy Require Passengers To Self Isolate For 5 Days Following Their Arrival And As The Migrant Had No Address In Italy We Agreed To Purchase A Hotel Room Where He Could Self - Isolate.
Home Office,UKBE - UK Borders & Enforcement,01/10/2021,MIRAFIT,90-UKBE - UK Borders & Enforcement-50395,503.95,Welfare - Temporary Ground Mat For Sitting/Laying On
Home Office,UKBE - UK Borders & Enforcement,01/10/2021,POLYBAGS LIMITED,89-UKBE - UK Borders & Enforcement-69383,693.83,2000 Clear Property Bags For Use At Tug Haven As Part Of Cort/Ctc Dealing With Channel Crossings
Home Office,UKBE - UK Borders & Enforcement,04/10/2021,DELESALLE PUBLI,66-UKBE - UK Borders & Enforcement-79173,791.73,Communication Leaflets For The Public Regarding The Change Of Travel Regulations (Id Cards)
Home Office,UKBE - UK Borders & Enforcement,04/10/2021,KPMGK,85-UKBE - UK Borders & Enforcement-20664,2066.40,Payment For Project Management Course For staff member
Home Office,UKBE - UK Borders & Enforcement,04/10/2021,RHG SHPK,78-UKBE - UK Borders & Enforcement-52044000000000005,520.44,Meal For Delegation Of Albanian State Police And Albanian Customs
Home Office,UKBE - UK Borders & Enforcement,04/10/2021,SQ NORTHROP SAILS LIM,75-UKBE - UK Borders & Enforcement-116472,1164.72,Emergency Recovery Lines For Migrant Ops
Home Office,UKBE - UK Borders & Enforcement,07/10/2021,AIRBNB HMX48HTRFA,55-UKBE - UK Borders & Enforcement-247916,2479.16,14 Nights Accommodation For 2 X Additional Cpv Crew In Greenock For Cop26 (United Nations Climate Change Conference) Patrols. Authorised By (So). No Accommodation Available On Ctm Due To Climate Change Meeting. This Works Out At 88.54 Pppn
Home Office,UKBE - UK Borders & Enforcement,07/10/2021,H.B COMMERCIAL LIMITED,27-UKBE - UK Borders & Enforcement-7938,793.80,3 X 24 Volt Main Engine Starting Batteries For Hmc Seeker
Home Office,UKBE - UK Borders & Enforcement,07/10/2021,LONDON ASHFORD A/P,33-UKBE - UK Borders & Enforcement-1232,1232.00,"Initial Monthly Rent For Lydd Arrivals Hall As Po Could Not Be Created In Time Scale Prior To Use, One Of 2 Payments, 4000 Plus 1232"
Home Office,UKBE - UK Borders & Enforcement,07/10/2021,LONDON ASHFORD A/P,32-UKBE - UK Borders & Enforcement-4000,4000.00,"Initial Monthly Rent For Lydd Arrivals Hall As Po Could Not Be Created In Time Scale Prior To Use, One Of 2 Payments, 4000 Plus 1232"
Home Office,UKBE - UK Borders & Enforcement,07/10/2021,LVL-WILLOWS,8-UKBE - UK Borders & Enforcement-357003,3570.03,"Specialist Veterinary Treatment For Detector Dog Reggie. The Treatment Is For Lymphoma, The Invoice Includes Icu Treatment And Chemotherapy."
Home Office,UKBE - UK Borders & Enforcement,07/10/2021,TOBERMORY HARBOUR ASSO,87-UKBE - UK Borders & Enforcement-61489,614.89,"Due To The Vessels Deployment Plan / Requirements To Transit South From Stornoway To Glasgow For The Cop Conference And Our Passage Being Heavily Determined By Weather, Available Accommodation And Access To Fuel Via Gpc In Tobermory. Po Number 1593/21"
Home Office,UKBE - UK Borders & Enforcement,07/10/2021,WILLETT HOUSE VETS LIMITED,9-UKBE - UK Borders & Enforcement-67714,677.14,Veterinary Treatment For Detector Dogs In Training.
Home Office,UKBE - UK Borders & Enforcement,08/10/2021,PAWFIT,44-UKBE - UK Borders & Enforcement-93483,934.83,20 X Detector Dog Trackers
Home Office,UKBE - UK Borders & Enforcement,08/10/2021,WOODCROFT VET GROUP WD,7-UKBE - UK Borders & Enforcement-54257000000000005,542.57,Veterinary Treatment For Detector Dog In Training 
Home Office,UKBE - UK Borders & Enforcement,11/10/2021,Dominos (Dover),37-UKBE - UK Borders & Enforcement-8995,899.50,Hot Food Provisions For Large Numbers Of Migrant Arrivals In Excess Of Expected Numbers. Other Options Were Considered But No Other Supplier Could Provided The Quantity Of Food Required In A Reasonable Time Frame. 2Nd Part Of A Two Part Transaction.
Home Office,UKBE - UK Borders & Enforcement,11/10/2021,Dominos (Dover),34-UKBE - UK Borders & Enforcement-1700,1700.00,Hot Food Provisions For Large Numbers Of Migrant Arrivals In Excess Of Expected Numbers. Other Options Were Considered But No Other Supplier Could Provided The Quantity Of Food Required In A Reasonable Time Frame.
Home Office,UKBE - UK Borders & Enforcement,11/10/2021,Dominos (Dover),35-UKBE - UK Borders & Enforcement-1700,1700.00,Hot Food Provisions For Large Numbers Of Migrant Arrivals In Excess Of Expected Numbers. Other Options Were Considered But No Other Supplier Could Provided The Quantity Of Food Required In A Reasonable Time Frame.
Home Office,UKBE - UK Borders & Enforcement,11/10/2021,Dominos (Dover),36-UKBE - UK Borders & Enforcement-175492,1754.92,Hot Food Provisions For Large Numbers Of Migrant Arrivals In Excess Of Expected Numbers. Other Options Were Considered But No Other Supplier Could Provided The Quantity Of Food Required In A Reasonable Time Frame.
Home Office,UKBE - UK Borders & Enforcement,11/10/2021,LANSDOWNE HOTEL,53-UKBE - UK Borders & Enforcement-570,570.00,South East Ice Team Meeting Costs - Day Rate Function Room/Equipment Hire
Home Office,UKBE - UK Borders & Enforcement,11/10/2021,LANSDOWNE HOTEL,54-UKBE - UK Borders & Enforcement-570,570.00,South East Ice Team Meeting Costs - Day Rate Function Room/Equipment Hire
Home Office,UKBE - UK Borders & Enforcement,11/10/2021,MEDIVET,1-UKBE - UK Borders & Enforcement-69239,692.39,"Vet Bill For Consultation, Treatment And Meds For 6 Detector Dogs, Including: Endoscopy, Ga, Xray X 2, Further Pics And Wound Stitch."
Home Office,UKBE - UK Borders & Enforcement,11/10/2021,SQ KENT DEEP CLEANING,61-UKBE - UK Borders & Enforcement-950,950.00,This Was A Cleaning Charge For Our Site At Lydd Airport
Home Office,UKBE - UK Borders & Enforcement,11/10/2021,SumUp Cinque Ports C,25-UKBE - UK Borders & Enforcement-7365,736.50,Food For Officers To Replace Need For T&S
Home Office,UKBE - UK Borders & Enforcement,11/10/2021,SumUp Cinque Ports C,24-UKBE - UK Borders & Enforcement-10735,1073.50,Food And Drink Catering Provision For Staff Working Long Hours Dealing With Multiple Migrant Crossings On The Channel As Parts Of Ctc.
Home Office,UKBE - UK Borders & Enforcement,12/10/2021,AIRBNB HMA8B3PSDZ,84-UKBE - UK Borders & Enforcement-57886,578.86,6 Nights Accommodation For 2 Border Force Crew Of Patrol Vessel Active For Operational Activity. All Efforts To Secure Accomm Via Ctm Failed And Accomm Required Urgently. Purchase Order Number Po-1816-21-Active-Aj
Home Office,UKBE - UK Borders & Enforcement,12/10/2021,PELIPRODUCTSK/CAS,21-UKBE - UK Borders & Enforcement-50496,504.96,Purchase Of 2 Peli Cases For Our Pst Training Team
Home Office,UKBE - UK Borders & Enforcement,14/10/2021,AMAZON,45-UKBE - UK Borders & Enforcement-90164,901.64,Macbook Air For Ground Truth Data Seeding Of Validation Reference Devices For Iso Accreditation
Home Office,UKBE - UK Borders & Enforcement,14/10/2021,AMAZON,82-UKBE - UK Borders & Enforcement-94925,949.25,Handwarmers To Warm Migrants In Peril At Sea
Home Office,UKBE - UK Borders & Enforcement,14/10/2021,AMAZON,41-UKBE - UK Borders & Enforcement-17195,1719.50,Camera Film Purchased By The Clandestine Operational Response Team (Cort) For Use At The Tug Haven In Dover Where We Have Migrants Arriving On Small Boats. All Migrants Require An Instant Photo Taken
Home Office,UKBE - UK Borders & Enforcement,14/10/2021,IKEA LIMITED SHOP ONLINE,30-UKBE - UK Borders & Enforcement-560,560.00,4 X Chairs And 2 X Foot Rests For Leeds Bradford Airport Staff Well Being Room
Home Office,UKBE - UK Borders & Enforcement,14/10/2021,KINGSTON VETERINARY GR,6-UKBE - UK Borders & Enforcement-68759,687.59,Veterinary Care For Detector Dog In Training 
Home Office,UKBE - UK Borders & Enforcement,14/10/2021,LVL-WILLOWS,2-UKBE - UK Borders & Enforcement-148747,1487.47,Veterinary Bill For Cancer Treatment Of Detector Dog
Home Office,UKBE - UK Borders & Enforcement,18/10/2021,FALMOUTH HAVEN,13-UKBE - UK Borders & Enforcement-12013399999999999,1201.34,Fuel For Bubble-E For Passage From Falmouth To The Solent.
Home Office,UKBE - UK Borders & Enforcement,18/10/2021,RS COMPONENTS,17-UKBE - UK Borders & Enforcement-65520000000000005,655.20,"Second Part Of Order, 3 X Inspection Lighting"
Home Office,UKBE - UK Borders & Enforcement,18/10/2021,SPRINGWISEBOTTLEDW,16-UKBE - UK Borders & Enforcement-50316,503.16,The Purchase Was For Emergency Water Supplies At Tug Haven During Multiple Small Boat Arrivals
Home Office,UKBE - UK Borders & Enforcement,18/10/2021,SQ KENT DEEP CLEANING,60-UKBE - UK Borders & Enforcement-950,950.00,Ad-Hoc Cleaning Service For Tughaven Site (Ho Cleaners Unavailable)
Home Office,UKBE - UK Borders & Enforcement,19/10/2021,AMAZON,39-UKBE - UK Borders & Enforcement-60498,604.98,Lenovo Pro Tab For Df Lab Validation - Returned And Awaiting Refund
Home Office,UKBE - UK Borders & Enforcement,19/10/2021,AMAZON,46-UKBE - UK Borders & Enforcement-87984,879.84,2 X Digimagic Dvd/Cd Burner To Support Investigations
Home Office,UKBE - UK Borders & Enforcement,19/10/2021,AQUA PHARMACY LIMITED,80-UKBE - UK Borders & Enforcement-686,686.00,"Consultations And Travel Vaccinations For Postings To Ghana. 2 Consultations Paid - Only 1 Refunded, Pharmacy Error. 2Nd Refund Will Be Given At Next Appointment On 15/11/21"
Home Office,UKBE - UK Borders & Enforcement,19/10/2021,PAWSOME,68-UKBE - UK Borders & Enforcement-99072,990.72,"� Applicant Is Returning At Public Expense To India, She Has A Dog That She Is Taking With Her And This Payment Is For Services For The Transporting Of The Dog"
Home Office,UKBE - UK Borders & Enforcement,20/10/2021,AVPARTMASTER.NET,62-UKBE - UK Borders & Enforcement-78959,789.59,Bsu Tv Stand
Home Office,UKBE - UK Borders & Enforcement,20/10/2021,BUDGETSHIPPINGCONTAINE,11-UKBE - UK Borders & Enforcement-379148,3791.48,"3 X Electronic Bolt Cutters For Shipping Containers, Required For The Set Up Of New Border Force Sites, Approved By Senior Management"
Home Office,UKBE - UK Borders & Enforcement,20/10/2021,CRITICAL HEALTHCARE,69-UKBE - UK Borders & Enforcement-273072,2730.72,"Transaction Was For The Purchase Of 5,000 Fleece Blankets For Use At The Tug Haven To Provide The Wet/Cold Migrants With Some Warmth As They Come Off The Small Boats."
Home Office,UKBE - UK Borders & Enforcement,20/10/2021,CRITICAL HEALTHCARE,70-UKBE - UK Borders & Enforcement-273072,2730.72,"Provision Of Fleece Blankets For Migrants Arriving At Tug Haven Site, Dover"
Home Office,UKBE - UK Borders & Enforcement,21/10/2021,Bitiba,42-UKBE - UK Borders & Enforcement-54264,542.64,13 X 10Kg Bags Of James Wellbeloved Dry Complete Turkey Food. Required For Daily Dietary Requirements Of All Dogs.
Home Office,UKBE - UK Borders & Enforcement,21/10/2021,LAVAZZA PRO,23-UKBE - UK Borders & Enforcement-23023000000000002,2302.30,Provision Of Hot Drinks Machine For Officers Working At Tug Haven Site. Auth Dd Dave Butler
Home Office,UKBE - UK Borders & Enforcement,21/10/2021,LUMBRY PARK,4-UKBE - UK Borders & Enforcement-12628900000000001,1262.89,"Veterinary treatment , including surgery for Home Kennelled Detector dog"
Home Office,UKBE - UK Borders & Enforcement,21/10/2021,MARINE SUPER STORE LIMITED,12-UKBE - UK Borders & Enforcement-8995,899.50,This Was A Purchase Of Life Vests For The Wsw Ice Team. We Are Conducting Enforcement Operations To Fishing Vessels And Other Vessels And This Requires The Team To Wear Life Vests.
Home Office,UKBE - UK Borders & Enforcement,21/10/2021,MR ANIMAL SERVICES LIM,5-UKBE - UK Borders & Enforcement-69736,697.36,Veterinary Fees For Dog In Training
Home Office,UKBE - UK Borders & Enforcement,21/10/2021,PAYPAL AHLQUISTLIMITED,19-UKBE - UK Borders & Enforcement-57585,575.85,"30 X Magnifiers, Coqulles Tourist Training Team, Approved"
Home Office,UKBE - UK Borders & Enforcement,21/10/2021,SAFELINCS,48-UKBE - UK Borders & Enforcement-10572,1057.20,The Purchase Of Defibrillators For Costal Patrol Vessel. It Is Common Practice Now That These Vessels Run With This Equipment On Board.
Home Office,UKBE - UK Borders & Enforcement,21/10/2021,THE ROYAL NORFOLK & SU,77-UKBE - UK Borders & Enforcement-666,666.00,"Payment Of Invoice 1083 For Mooring For Seized Yacht @Trip Trap'
Period 12/09/2021 To 13/10/2021 Seized As Part Of A Criminal Investigation"
Home Office,UKBE - UK Borders & Enforcement,22/10/2021,DARTSYSTEMSK,18-UKBE - UK Borders & Enforcement-4224,4224.00,Purchase Of Metal Detector & Scanner. Please Code To : Cost Centre; 1431878 Project Code 14509350
Home Office,UKBE - UK Borders & Enforcement,22/10/2021,XYLEM WATER SOLUTIONS,65-UKBE - UK Borders & Enforcement-136151,1361.51,Lrn: 1798/21/Hunter/Jw Xylem Jabsco 1 X 255Sl Searchlight For Cpv Hunter
Home Office,UKBE - UK Borders & Enforcement,25/10/2021,AMAZON,51-UKBE - UK Borders & Enforcement-77757,777.57,Initial Training Equipment For Course To Be Held At Lgw In November
Home Office,UKBE - UK Borders & Enforcement,25/10/2021,AMAZON,47-UKBE - UK Borders & Enforcement-1710,1710.00,Benches For Tug Haven And Lydd Airport To Cope With Numbers
Home Office,UKBE - UK Borders & Enforcement,25/10/2021,AMAZON,40-UKBE - UK Borders & Enforcement-17195,1719.50,Camera Film Purchased By The Clandestine Operational Response Team (Cort) For Use At The Tug Haven In Dover Where We Have Migrants Arriving On Small Boats. All Migrants Require An Instant Photo Taken
Home Office,UKBE - UK Borders & Enforcement,25/10/2021,FUSION OCCUPATION H VT,63-UKBE - UK Borders & Enforcement-624,624.00,Purchase Of Medicals That Some Of The Teams Had To Have To Allow Them To Drive Airside At Ports
Home Office,UKBE - UK Borders & Enforcement,25/10/2021,HELLY HANSEN UK LIMITED,29-UKBE - UK Borders & Enforcement-549,549.00,Wet Weather Clothing As Required By Cort That Couldn'T Be Supplied In The Necessary Timeframe
Home Office,UKBE - UK Borders & Enforcement,25/10/2021,IKEA LIMITED SHOP ONLINE,31-UKBE - UK Borders & Enforcement-5635,563.50,Furniture And Soft Furnishings For Well-Being Room
Home Office,UKBE - UK Borders & Enforcement,25/10/2021,Police Federation,52-UKBE - UK Borders & Enforcement-515,515.00,Accommodation Booked For 5 Nights At The Police Federation On Site Hotel For Staff Member Attending A Course There.
Home Office,UKBE - UK Borders & Enforcement,25/10/2021,RRCK,64-UKBE - UK Borders & Enforcement-7314,731.40,The Payment Was For An External Health And Safety Training Course Via Distance Learning
Home Office,UKBE - UK Borders & Enforcement,25/10/2021,SNAP ON,22-UKBE - UK Borders & Enforcement-60617999999999995,606.18,Purchase Of Metal Detector & Scanner. Please Code To : Cost Centre; 1431878 Project Code 14509350
Home Office,UKBE - UK Borders & Enforcement,25/10/2021,SQ KENT DEEP CLEANING,58-UKBE - UK Borders & Enforcement-950,950.00,Ad-Hoc Deep Cleaning Service For Lydd Airport Stand Up (Op Altair).
Home Office,UKBE - UK Borders & Enforcement,25/10/2021,SQ KENT DEEP CLEANING,59-UKBE - UK Borders & Enforcement-950,950.00,Extra Carpet Deep Clean Requested By Lydd Airport Due To Foot Traffic. (Extra Service)
Home Office,UKBE - UK Borders & Enforcement,26/10/2021,1STOPTIONSAFETY,86-UKBE - UK Borders & Enforcement-8004,800.40,"""Safe"" Training For Operational Contract Monitor Traveling Aboard"
Home Office,UKBE - UK Borders & Enforcement,26/10/2021,DINGBRO LIMITED,26-UKBE - UK Borders & Enforcement-53520000000000005,535.20,2 X Main Engine Start Batteries. Lrn1821/21/Vig/Mjes
Home Office,UKBE - UK Borders & Enforcement,26/10/2021,MANUTAN UK LIMITED,38-UKBE - UK Borders & Enforcement-53236,532.36,"Southend Airport Closed At The End Of October And The Border Force Office Has Become Inaccessible To Border Force Staff.Purchased Lockers From Manutan Uk Ltd To Store Handcuffs, Batons Etc Which Is Landside."
Home Office,UKBE - UK Borders & Enforcement,26/10/2021,MARINE SAFETY SUPPLIES,28-UKBE - UK Borders & Enforcement-51479999999999995,514.80,1946-21-Valiant-Pl - 1X Pilot/Boarding Ladder For Valiant As The One Purchased In The Med Is Showing Signs Of Wear.
Home Office,UKBE - UK Borders & Enforcement,26/10/2021,MIRAFIT,81-UKBE - UK Borders & Enforcement-50395,503.95,"Comfortable Laying Mates For Sthf Detention Welfare. X10 For Stansted, X10 For Luton To Replenish Worn Stocks"
Home Office,UKBE - UK Borders & Enforcement,26/10/2021,PEEJAY PETS SUPERSTORE,43-UKBE - UK Borders & Enforcement-6551,655.10,Dog Feed And Treats
Home Office,UKBE - UK Borders & Enforcement,26/10/2021,"TC OKOV, KASA 7",74-UKBE - UK Borders & Enforcement-135594,1355.94,Vessel Search Overalls Bought From Local Hardware Supplier In Podgorica. Overalls Bought For Both Mne And Alb Border Police And Delta Force Officers To Receive Once Completed All Training In November And January.
Home Office,UKBE - UK Borders & Enforcement,27/10/2021,BLOOD AND MEDICAL SERV,57-UKBE - UK Borders & Enforcement-625,625.00,"Pcr Covid Tests Booked For A Family Of 6 Voluntary Returnees (Ho Ref: M1690965 - 125 Per Test), A Negative Pcr Test Is An Entry Clearance Requirement, Otherwise The Passengers Would Not Be Allowed To Board. Gpc Only Way To Pay For Pcr Tests At Present."
Home Office,UKBE - UK Borders & Enforcement,27/10/2021,iZ Burnside Anima,73-UKBE - UK Borders & Enforcement-586,586.00,Initial Physio Consult And Block Booking Of 10 Sessions For Detector Dog Jessie. Physio For Recent Operations. Approved At Senior Officer Level
Home Office,UKBE - UK Borders & Enforcement,27/10/2021,KASTRATI HOTEL TOWER,83-UKBE - UK Borders & Enforcement-178153,1781.53,Agilent Training Conference Facilities
Home Office,UKBE - UK Borders & Enforcement,28/10/2021,ANDARK PRMTS LIMITED,76-UKBE - UK Borders & Enforcement-740,740.00,Spinlock Life Jackets For Boarding School.
Home Office,UKBE - UK Borders & Enforcement,28/10/2021,COLOP UK LIMITED,20-UKBE - UK Borders & Enforcement-72499,724.99,This Is A Purchase Of A Security Stamp(Colop Ncts Stamps) To Be Used For International Trade Work. This Is A Stamp That Is Used If A Computer Systems Fails And We Have To Undertake The Process Manually
Home Office,UKBE - UK Borders & Enforcement,28/10/2021,HILTON,10-UKBE - UK Borders & Enforcement-700,700.00,"Patone Confrence Room Hired For Control Room, London Hilton Kensington 01/11/21 - 02/11/21"
Home Office,UKBE - UK Borders & Enforcement,28/10/2021,MARRIOTT,67-UKBE - UK Borders & Enforcement-14235,1423.50,"Applicant Returned At Public Expense To St Nevis & Kitts, There Was A Requirement For The Person To Quarantine At A Designated Hotel."
Home Office,UKBE - UK Borders & Enforcement,28/10/2021,SumUp Farmwatch Limi,50-UKBE - UK Borders & Enforcement-1248,1248.00,Repair Costs To Electric Security Gate At Felixstowe After Damage Caused By Wind.
Home Office,UKBE - UK Borders & Enforcement,28/10/2021,VETERINARY TASK FORCE,3-UKBE - UK Borders & Enforcement-500,500.00,Veterinary Training Services - First Aid Course For Chief Instructor
Home Office,UKBE - UK Borders & Enforcement,29/10/2021,KIP MARINA,56-UKBE - UK Borders & Enforcement-82074,820.74,"The Purchase Below Was To Take Fuel For The Cpv At Kip Marina, Inverkip"
Home Office,UKBE - UK Borders & Enforcement,29/10/2021,LONDON ASHFORD A/P,15-UKBE - UK Borders & Enforcement-1232,1232.00,Requested By Senior Management To Make The Hall And Its Facilities Operational Within A Week
Home Office,UKBE - UK Borders & Enforcement,29/10/2021,LONDON ASHFORD A/P,14-UKBE - UK Borders & Enforcement-4000,4000.00,Requested By Senior Management To Make The Hall And Its Facilities Operational Within A Week
Home Office,UKBE - UK Borders & Enforcement,29/10/2021,OMEGA TECH,71-UKBE - UK Borders & Enforcement-73308,733.08,"Code: Oda_Ea_Csae_Phase2 :Description: Csae Global Programme Phase 2 , Americas. Owner Deepika Sondhi. Upgrades For 17 Laptops For Cps Csae Training Event Santo Domingo 22-26 Nov."
Home Office,UKBE - UK Borders & Enforcement,29/10/2021,OMEGA TECH,72-UKBE - UK Borders & Enforcement-73308,733.08,"Code: Oda_Ea_Csae_Phase2
Description: Csae Global Programme Phase 2 , Americas. Owner Deepika Sondhi. Upgrades For 17 Laptops For Cps Csae Training Event Santo Domingo 22-26 Nov."
Home Office,UKBE - UK Borders & Enforcement,29/10/2021,PRET A MANGER,79-UKBE - UK Borders & Enforcement-60879999999999995,608.80,Sandwiches Supplied For Staff Covering Cop26 Due To Length Of Shifts And Amount Of Supply/Extra Staff From Different Areas Required To Cover The Volume And Number Of Extra Flights In Connection With This Event.
Home Office,UKBE - UK Borders & Enforcement,29/10/2021,SumUp Farmwatch Limi,49-UKBE - UK Borders & Enforcement-1248,1248.00,I Am The Superintendent Of 6X Costal Patrol Vessel And It Was Found The 2X Of The Vessel Never Had A Defib On Board. It Is Common Practice Now That These Vessels Run With This Equipment On Board
